fUST/lending_fUST_20251127
["ID","MTS","AMOUNT","RATE_DAILY","PERIOD"]
[394942374,1764178251279,-207.0,0.00028136,2]
[394942375,1764178251289,-208.0,0.00028143,2]
[394942376,1764178251298,-207.0,0.00028193,2]
[394942377,1764178251311,-207.0,0.00028215,7]
[394942378,1764178251321,-500.0,0.00028219,2]
[394942379,1764178251331,-500.0,0.00028219,2]
[394942380,1764178251343,-239.42683211,0.00028219,4]
[394942381,1764178251353,-500.0,0.00028219,4]
[394942382,1764178251363,-500.0,0.00028219,4]
[394942383,1764178251375,-500.0,0.00028219,4]
[394942384,1764178251385,-1663.48,0.00028219,4]
[394942385,1764178251395,-500.0,0.00028219,4]
[394942386,1764178251404,-1457.04,0.00028219,4]
[394942387,1764178251414,-500.0,0.00028219,4]
[394942388,1764178251423,-537.16,0.00028219,4]
[394942389,1764178251434,-500.0,0.00028219,4]
[394942390,1764178251443,-252.07705248,0.00028219,4]
[394942391,1764178251452,-500.0,0.00028219,4]
[394942392,1764178251462,-200.0,0.00028219,4]
[394942393,1764178251471,-500.0,0.00028219,4]
[394942394,1764178251480,-708.17,0.00028219,4]
[394942395,1764178251490,-500.0,0.00028219,4]
[394942396,1764178251498,-750.13,0.00028219,2]
[394942397,1764178251508,-500.0,0.00028219,4]
[394942398,1764178251517,-500.0,0.00028219,4]
[394942399,1764178251527,-500.0,0.00028219,4]
[394942400,1764178251537,-500.0,0.00028219,4]
[394942401,1764178251545,-500.0,0.00028219,4]
[394942402,1764178251555,-500.0,0.00028219,4]
[394942403,1764178251563,-500.0,0.00028219,4]
[394942404,1764178251572,-500.0,0.00028219,4]
[394942405,1764178251582,-813.36,0.00028219,2]
[394942406,1764178251591,-500.0,0.00028219,4]
[394942407,1764178251600,-290.34576354,0.00028219,4]
[394942408,1764178251610,-500.0,0.00028219,4]
[394942409,1764178251620,-500.0,0.00028219,4]
[394942410,1764178251629,-500.0,0.00028219,4]
[394942411,1764178251639,-563.71,0.00028219,4]
[394942412,1764178251648,-500.0,0.00028219,4]
[394942413,1764178251657,-500.0,0.00028219,4]
[394942414,1764178251666,-500.0,0.00028219,4]
[394942415,1764178251675,-626.46,0.00028219,4]
[394942416,1764178251685,-977.53,0.00028219,4]
[394942417,1764178251695,-693.33,0.00028219,4]
[394942418,1764178251706,-500.0,0.00028219,4]
[394942419,1764178251716,-500.0,0.00028219,4]
[394942420,1764178251725,-500.0,0.00028219,4]
[394942421,1764178251734,-805.33,0.00028219,4]
[394942422,1764178251744,-500.0,0.00028219,4]
[394942423,1764178251753,-500.0,0.00028219,4]
[394942424,1764178251763,-500.0,0.00028219,4]
[394942425,1764178251772,-604.38,0.00028219,4]
[394942426,1764178251781,-500.0,0.00028219,4]
[394942427,1764178251791,-500.0,0.00028219,4]
[394942428,1764178251801,-3161.51,0.00028219,3]
[394942429,1764178251810,-500.0,0.00028219,4]
[394942430,1764178251819,-608.72,0.00028219,4]
[394942431,1764178251829,-500.0,0.00028219,4]
[394942432,1764178251839,-500.0,0.00028219,4]
[394942433,1764178251850,-500.0,0.00028219,4]
[394942434,1764178251861,-500.0,0.00028219,4]
[394942435,1764178251872,-3519.24,0.00028219,4]
[394942436,1764178251881,-500.0,0.00028219,4]
[394942437,1764178251892,-500.0,0.00028219,4]
[394942438,1764178251901,-752.45,0.00028219,4]
[394942439,1764178251911,-1487.87,0.00028219,4]
[394942440,1764178251921,-500.0,0.00028219,4]
[394942441,1764178251931,-500.0,0.00028219,4]
[394942442,1764178251941,-399.78624639,0.00028219,4]
[394942443,1764178251951,-269.04606651,0.00028219,4]
[394942444,1764178251960,-500.0,0.00028219,4]
[394942445,1764178251970,-500.0,0.00028219,4]
[394942446,1764178251979,-500.0,0.00028219,4]
[394942447,1764178251988,-745.19,0.00028219,4]
[394942448,1764178251998,-745.3,0.00028219,4]
[394942449,1764178252008,-500.0,0.00028219,4]
[394942450,1764178252019,-732.52,0.00028219,4]
[394942451,1764178252031,-500.0,0.00028219,4]
[394942452,1764178252041,-500.0,0.00028219,4]
[394942453,1764178252050,-500.0,0.00028219,4]
[394942454,1764178252060,-500.0,0.00028219,4]
[394942455,1764178252071,-500.0,0.00028219,4]
[394942456,1764178252080,-500.0,0.00028219,4]
[394942457,1764178252090,-728.0,0.00028219,4]
[394942458,1764178252100,-1008.99,0.00028219,4]
[394942459,1764178252109,-1267.69,0.00028219,4]
[394942460,1764178252119,-500.0,0.00028219,4]
[394942461,1764178252128,-622.71,0.00028219,4]
[394942462,1764178252139,-500.0,0.00028219,4]
[394942463,1764178252148,-500.0,0.00028219,4]
[394942464,1764178252158,-208.0,0.00028227,2]
[394942465,1764178252167,-396.5876234,0.00028346,30]
[394942466,1764178252176,-396.5876234,0.00028346,30]
[394942467,1764178252186,-396.5876234,0.00028346,30]
[394942468,1764178252196,-396.5876234,0.00028346,30]
[394942469,1764178252205,-396.5876234,0.00028346,30]
[394942470,1764178252214,-158.2047918,0.00028346,30]
[394942471,1764178252231,-500.0,0.00028356,2]
[394942472,1764178252240,-500.0,0.00028356,2]
[394942473,1764178252250,-396.5876234,0.00028479,30]
[394942474,1764178252259,-500.0,0.00028493,2]
[394942475,1764178252270,-500.0,0.00028493,2]
[394942476,1764178252279,-500.0,0.00028493,4]
[394942477,1764178252289,-500.0,0.00028493,4]
[394942478,1764178252299,-500.0,0.00028493,4]
[394942479,1764178252308,-1663.48,0.00028493,4]
[394942480,1764178252317,-500.0,0.00028493,4]
[394942481,1764178252326,-1457.04,0.00028493,4]
[394942482,1764178252336,-500.0,0.00028493,4]
[394942483,1764178252346,-537.16,0.00028493,4]
[394942484,1764178252355,-500.0,0.00028493,4]
[394942485,1764178252366,-500.0,0.00028493,4]
[394942486,1764178252375,-200.0,0.00028493,4]
[394942487,1764178252384,-500.0,0.00028493,4]
[394942488,1764178252394,-708.17,0.00028493,4]
[394942489,1764178252403,-500.0,0.00028493,4]
[394942490,1764178252413,-750.13,0.00028493,2]
[394942491,1764178252423,-500.0,0.00028493,4]
[394942492,1764178252433,-500.0,0.00028493,4]
[394942493,1764178252443,-500.0,0.00028493,4]
[394942494,1764178252452,-500.0,0.00028493,4]
[394942495,1764178252462,-500.0,0.00028493,4]
[394942496,1764178252472,-500.0,0.00028493,4]
[394942497,1764178252482,-500.0,0.00028493,4]
[394942498,1764178252491,-500.0,0.00028493,4]
[394942499,1764178252501,-813.36,0.00028493,2]
[394942500,1764178252510,-500.0,0.00028493,4]
[394942501,1764178252520,-500.0,0.00028493,4]
[394942502,1764178252530,-500.0,0.00028493,4]
[394942503,1764178252539,-500.0,0.00028493,4]
[394942504,1764178252548,-563.71,0.00028493,4]
[394942505,1764178252557,-500.0,0.00028493,4]
[394942506,1764178252567,-500.0,0.00028493,4]
[394942507,1764178252576,-500.0,0.00028493,4]
[394942508,1764178252585,-626.46,0.00028493,4]
[394942509,1764178252594,-977.53,0.00028493,4]
[394942510,1764178252603,-693.33,0.00028493,4]
[394942511,1764178252612,-500.0,0.00028493,4]
[394942512,1764178252622,-500.0,0.00028493,4]
[394942513,1764178252631,-500.0,0.00028493,4]
[394942514,1764178252641,-805.33,0.00028493,4]
[394942515,1764178252650,-500.0,0.00028493,4]
[394942516,1764178252659,-500.0,0.00028493,4]
[394942517,1764178252669,-500.0,0.00028493,4]
[394942518,1764178252679,-604.38,0.00028493,4]
[394942519,1764178252689,-500.0,0.00028493,4]
[394942520,1764178252698,-500.0,0.00028493,4]
[394942521,1764178252708,-3161.51,0.00028493,3]
[394942522,1764178252718,-500.0,0.00028493,4]
[394942523,1764178252727,-608.72,0.00028493,4]
[394942524,1764178252737,-500.0,0.00028493,4]
[394942525,1764178252746,-500.0,0.00028493,4]
[394942526,1764178252756,-500.0,0.00028493,4]
[394942527,1764178252767,-500.0,0.00028493,4]
[394942528,1764178252776,-3519.24,0.00028493,4]
[394942529,1764178252785,-500.0,0.00028493,4]
[394942530,1764178252794,-500.0,0.00028493,4]
[394942531,1764178252803,-752.45,0.00028493,4]
[394942532,1764178252812,-1487.87,0.00028493,4]
[394942533,1764178252821,-500.0,0.00028493,4]
[394942534,1764178252830,-294.0290672,0.00028493,4]
[394942535,1764178252839,-500.0,0.00028493,4]
[394942536,1764178252849,-500.0,0.00028493,4]
[394942537,1764178252858,-500.0,0.00028493,4]
[394942538,1764178252868,-745.19,0.00028493,4]
[394942539,1764178252878,-745.3,0.00028493,4]
[394942540,1764178252887,-500.0,0.00028493,4]
[394942541,1764178252896,-732.52,0.00028493,4]
[394942542,1764178252906,-500.0,0.00028493,4]
[394942543,1764178252915,-500.0,0.00028493,4]
[394942544,1764178252925,-500.0,0.00028493,4]
[394942545,1764178252935,-500.0,0.00028493,4]
[394942546,1764178252944,-500.0,0.00028493,4]
[394942547,1764178252954,-500.0,0.00028493,4]
[394942548,1764178252964,-728.0,0.00028493,4]
[394942549,1764178252974,-1008.99,0.00028493,4]
[394942550,1764178252983,-1267.69,0.00028493,4]
[394942551,1764178252993,-500.0,0.00028493,4]
[394942552,1764178253002,-622.71,0.00028493,4]
[394942553,1764178253012,-500.0,0.00028493,4]
[394942554,1764178253022,-500.0,0.00028493,4]
[394942555,1764178253032,-1327.59928192,0.00028493,5]
[394942556,1764178253042,-350.0,0.00028493,5]
[394942557,1764178253052,-350.0,0.00028493,5]
[394942558,1764178253061,-850.0,0.00028608,5]
[394942559,1764178253071,-500.0,0.0002863,2]
[394942560,1764178253080,-500.0,0.0002863,2]
[394942561,1764178253090,-9461.19,0.000287,3]
[394942562,1764178253099,-4000.0,0.0002876,5]
[394942563,1764178253109,-500.0,0.00028767,2]
[394942564,1764178253118,-500.0,0.00028767,2]
[394942565,1764178253128,-500.0,0.00028767,4]
[394942566,1764178253137,-500.0,0.00028767,4]
[394942567,1764178253147,-500.0,0.00028767,4]
[394942568,1764178253157,-1663.48,0.00028767,4]
[394942569,1764178253167,-500.0,0.00028767,4]
[394942570,1764178253176,-1457.04,0.00028767,4]
[394942571,1764178253186,-500.0,0.00028767,4]
[394942572,1764178253196,-537.16,0.00028767,4]
[394942573,1764178253206,-500.0,0.00028767,4]
[394942574,1764178253216,-450.52560643,0.00028767,4]
[394942575,1764178253231,-200.0,0.00028767,4]
[394942576,1764178253241,-500.0,0.00028767,4]
[394942577,1764178253251,-708.17,0.00028767,4]
[394942578,1764178253262,-500.0,0.00028767,4]
[394942579,1764178253272,-750.13,0.00028767,2]
[394942580,1764178253283,-500.0,0.00028767,4]
[394942581,1764178253293,-281.16370793,0.00028767,4]
[394942582,1764178253304,-500.0,0.00028767,4]
[394942583,1764178253317,-500.0,0.00028767,4]
[394942584,1764178253327,-500.0,0.00028767,4]
[394942585,1764178253336,-500.0,0.00028767,4]
[394942586,1764178253345,-500.0,0.00028767,4]
[394942587,1764178253355,-500.0,0.00028767,4]
[394942588,1764178253364,-813.36,0.00028767,2]
[394942589,1764178253373,-500.0,0.00028767,4]
[394942590,1764178253383,-500.0,0.00028767,4]
[394942591,1764178253394,-500.0,0.00028767,4]
[394942592,1764178253404,-500.0,0.00028767,4]
[394942593,1764178253414,-563.71,0.00028767,4]
[394942594,1764178253424,-500.0,0.00028767,4]
[394942595,1764178253436,-500.0,0.00028767,4]
[394942596,1764178253446,-500.0,0.00028767,4]
[394942597,1764178253457,-626.46,0.00028767,4]
[394942598,1764178253467,-977.53,0.00028767,4]
[394942599,1764178253476,-693.33,0.00028767,4]
[394942600,1764178253486,-500.0,0.00028767,4]
[394942601,1764178253496,-500.0,0.00028767,4]
[394942602,1764178253506,-500.0,0.00028767,4]
[394942603,1764178253517,-805.33,0.00028767,4]
[394942604,1764178253527,-500.0,0.00028767,4]
[394942605,1764178253537,-500.0,0.00028767,4]
[394942606,1764178253546,-500.0,0.00028767,4]
[394942607,1764178253557,-604.38,0.00028767,4]
[394942608,1764178253567,-500.0,0.00028767,4]
[394942609,1764178253577,-500.0,0.00028767,4]
[394942610,1764178253588,-3161.51,0.00028767,3]
[394942611,1764178253598,-500.0,0.00028767,4]
[394942612,1764178253608,-608.72,0.00028767,4]
[394942613,1764178253617,-500.0,0.00028767,4]
[394942614,1764178253626,-500.0,0.00028767,4]
[394942615,1764178253636,-500.0,0.00028767,4]
[394942616,1764178253646,-500.0,0.00028767,4]
[394942617,1764178253656,-3519.24,0.00028767,4]
[394942618,1764178253665,-500.0,0.00028767,4]
[394942619,1764178253675,-500.0,0.00028767,4]
[394942620,1764178253686,-752.45,0.00028767,4]
[394942621,1764178253696,-1487.87,0.00028767,4]
[394942622,1764178253812,-500.0,0.00028767,4]
[394942623,1764178253823,-500.0,0.00028767,4]
[394942624,1764178253833,-500.0,0.00028767,4]
[394942625,1764178253844,-500.0,0.00028767,4]
[394942626,1764178253854,-745.19,0.00028767,4]
[394942627,1764178253864,-745.3,0.00028767,4]
[394942628,1764178253874,-500.0,0.00028767,4]
[394942629,1764178253883,-732.52,0.00028767,4]
[394942630,1764178253893,-500.0,0.00028767,4]
[394942631,1764178253903,-500.0,0.00028767,4]
[394942632,1764178253913,-500.0,0.00028767,4]
[394942633,1764178253922,-500.0,0.00028767,4]
[394942634,1764178253932,-500.0,0.00028767,4]
[394942635,1764178253943,-500.0,0.00028767,4]
[394942636,1764178253953,-728.0,0.00028767,4]
[394942637,1764178253962,-1008.99,0.00028767,4]
[394942638,1764178253972,-1267.69,0.00028767,4]
[394942639,1764178253981,-500.0,0.00028767,4]
[394942640,1764178253992,-622.71,0.00028767,4]
[394942641,1764178254001,-500.0,0.00028767,4]
[394942642,1764178254011,-178.975432,0.00028767,60]
[394942643,1764178254021,-500.0,0.00028904,2]
[394942644,1764178254031,-500.0,0.00028904,2]
[394942645,1764178254040,-38000.0,0.00028908,7]
[394942646,1764178254051,-887.40570447,0.00029,2]
[394942647,1764178254061,-2496.89237,0.00029,2]
[394942648,1764178254070,-500.0,0.00029041,2]
[394942649,1764178254080,-500.0,0.00029041,2]
[394942650,1764178254090,-399.62443963,0.00029041,4]
[394942651,1764178254099,-500.0,0.00029041,4]
[394942652,1764178254108,-500.0,0.00029041,4]
[394942653,1764178254118,-1663.48,0.00029041,4]
[394942654,1764178254127,-500.0,0.00029041,4]
[394942655,1764178254137,-1457.04,0.00029041,4]
[394942656,1764178254147,-500.0,0.00029041,4]
[394942657,1764178254156,-537.16,0.00029041,4]
[394942658,1764178254167,-500.0,0.00029041,4]
[394942659,1764178254176,-200.0,0.00029041,4]
[394942660,1764178254187,-500.0,0.00029041,4]
[394942661,1764178254197,-708.17,0.00029041,4]
[394942662,1764178254206,-500.0,0.00029041,4]
[394942663,1764178254216,-750.13,0.00029041,2]
[394942664,1764178254230,-500.0,0.00029041,4]
[394942665,1764178254241,-500.0,0.00029041,4]
[394942666,1764178254251,-500.0,0.00029041,4]
[394942667,1764178254261,-500.0,0.00029041,4]
[394942668,1764178254275,-498.41984784,0.00029041,4]
[394942669,1764178254285,-500.0,0.00029041,4]
[394942670,1764178254295,-500.0,0.00029041,4]
[394942671,1764178254304,-813.36,0.00029041,2]
[394942672,1764178254315,-500.0,0.00029041,4]
[394942673,1764178254325,-500.0,0.00029041,4]
[394942674,1764178254336,-500.0,0.00029041,4]
[394942675,1764178254346,-500.0,0.00029041,4]
[394942676,1764178254356,-563.71,0.00029041,4]
[394942677,1764178254367,-500.0,0.00029041,4]
[394942678,1764178254376,-500.0,0.00029041,4]
[394942679,1764178254386,-500.0,0.00029041,4]
[394942680,1764178254395,-626.46,0.00029041,4]
[394942681,1764178254405,-977.53,0.00029041,4]
[394942682,1764178254414,-693.33,0.00029041,4]
[394942683,1764178254424,-500.0,0.00029041,4]
[394942684,1764178254435,-500.0,0.00029041,4]
[394942685,1764178254445,-610.42012791,0.00029041,4]
[394942686,1764178254455,-805.33,0.00029041,4]
[394942687,1764178254464,-500.0,0.00029041,4]
[394942688,1764178254474,-500.0,0.00029041,4]
[394942689,1764178254483,-500.0,0.00029041,4]
[394942690,1764178254494,-604.38,0.00029041,4]
[394942691,1764178254503,-500.0,0.00029041,4]
[394942692,1764178254513,-500.0,0.00029041,4]
[394942693,1764178254522,-3161.51,0.00029041,3]
[394942694,1764178254531,-508.18162888,0.00029041,4]
[394942695,1764178254540,-608.72,0.00029041,4]
[394942696,1764178254550,-500.0,0.00029041,4]
[394942697,1764178254559,-500.0,0.00029041,4]
[394942698,1764178254568,-500.0,0.00029041,4]
[394942699,1764178254578,-500.0,0.00029041,4]
[394942700,1764178254587,-3519.24,0.00029041,4]
[394942701,1764178254599,-500.0,0.00029041,4]
[394942702,1764178254611,-500.0,0.00029041,4]
[394942703,1764178254620,-752.45,0.00029041,4]
[394942704,1764178254629,-1487.87,0.00029041,4]
[394942705,1764178254638,-500.0,0.00029041,4]
[394942706,1764178254648,-500.0,0.00029041,4]
[394942707,1764178254658,-500.0,0.00029041,4]
[394942708,1764178254668,-500.0,0.00029041,4]
[394942709,1764178254678,-745.19,0.00029041,4]
[394942710,1764178254691,-745.3,0.00029041,4]
[394942711,1764178254701,-500.0,0.00029041,4]
[394942712,1764178254711,-732.52,0.00029041,4]
[394942713,1764178254720,-500.0,0.00029041,4]
[394942714,1764178254730,-500.0,0.00029041,4]
[394942715,1764178254739,-500.0,0.00029041,4]
[394942716,1764178254749,-500.0,0.00029041,4]
[394942717,1764178254758,-500.0,0.00029041,4]
[394942718,1764178254767,-500.0,0.00029041,4]
[394942719,1764178254777,-728.0,0.00029041,4]
[394942720,1764178254786,-1008.99,0.00029041,4]
[394942721,1764178254795,-1267.69,0.00029041,4]
[394942722,1764178254805,-500.0,0.00029041,4]
[394942723,1764178254815,-622.71,0.00029041,4]
[394942724,1764178254825,-450.0,0.00029041,5]
[394942725,1764178254835,-450.0,0.00029041,5]
[394942726,1764178254845,-393.0,0.00029085,2]
[394942727,1764178254854,-5000.0,0.00029114,2]
[394942728,1764178254864,-178.0,0.00029123,32]
[394942729,1764178254874,-950.0,0.00029156,5]
[394942730,1764178254884,-500.0,0.00029178,2]
[394942731,1764178254894,-576.0,0.00029178,2]
[394942732,1764178254903,-170.581,0.000292,22]
[394942733,1764178254913,-500.0,0.00029315,2]
[394942734,1764178254923,-500.0,0.00029315,4]
[394942735,1764178254933,-500.0,0.00029315,4]
[394942736,1764178254943,-1663.48,0.00029315,4]
[394942737,1764178254952,-500.0,0.00029315,4]
[394942738,1764178254961,-1457.04,0.00029315,4]
[394942739,1764178254971,-500.0,0.00029315,4]
[394942740,1764178254981,-537.16,0.00029315,4]
[394942741,1764178254991,-500.0,0.00029315,4]
[394942742,1764178255000,-200.0,0.00029315,4]
[394942743,1764178255011,-500.0,0.00029315,4]
[394942744,1764178255020,-708.17,0.00029315,4]
[394942745,1764178255031,-500.0,0.00029315,4]
[394942746,1764178255041,-750.13,0.00029315,2]
[394942747,1764178255051,-500.0,0.00029315,4]
[394942748,1764178255061,-500.0,0.00029315,4]
[394942749,1764178255071,-500.0,0.00029315,4]
[394942750,1764178255085,-500.0,0.00029315,4]
[394942751,1764178255094,-500.0,0.00029315,4]
[394942752,1764178255104,-500.0,0.00029315,4]
[394942753,1764178255114,-813.36,0.00029315,2]
[394942754,1764178255125,-500.0,0.00029315,4]
[394942755,1764178255135,-500.0,0.00029315,4]
[394942756,1764178255144,-500.0,0.00029315,4]
[394942757,1764178255154,-500.0,0.00029315,4]
[394942758,1764178255163,-563.71,0.00029315,4]
[394942759,1764178255173,-500.0,0.00029315,4]
[394942760,1764178255182,-500.0,0.00029315,4]
[394942761,1764178255191,-375.12339381,0.00029315,4]
[394942762,1764178255459,-226.997379,0.00013698,2]
[394942763,1764178255469,-425.1067,0.00013699,2]
[394942764,1764178255479,-226.997379,0.00015316,2]
[394942765,1764178255489,-226.997379,0.0001799,2]
[394942766,1764178255498,-99241.901163,0.0002199,2]
[394942767,1764178255509,-359.72106087,0.0002199,2]
[394942768,1764178255520,-392.8959,0.0002199,2]
[394942769,1764178263738,200.87880561,0.00014,10]
[394942805,1764179095665,218.62253784,0.00010383,2]
[394942806,1764179114697,5714.2795918,0.00010959,2]
[394942807,1764179250938,335.6329357,0.00010078,2]
[394942808,1764179313217,2757.21593388,0.00010965,2]
[394942809,1764179334903,2939.9416007,0.00010965,2]
[394942952,1764179438276,-312.94261772,0.00011075,2]
[394942953,1764179438286,-500.0,0.00011075,2]
[394942954,1764179438296,-500.0,0.00011075,2]
[394942956,1764179438306,-500.0,0.00011075,2]
[394942958,1764179438316,-500.0,0.00011075,2]
[394942959,1764179438326,-500.0,0.00011075,2]
[394942960,1764179438335,-500.0,0.00011075,2]
[394942961,1764179438345,-444.27331616,0.00011075,2]
[394942962,1764179438354,-500.0,0.00011075,2]
[394942963,1764179438364,-500.0,0.00011075,2]
[394942964,1764179438374,-154.83203798,0.00011075,2]
[394942965,1764179438383,-500.0,0.00011075,2]
[394942966,1764179438392,-500.0,0.00011075,2]
[394942967,1764179438403,-500.0,0.00011075,2]
[394942968,1764179438413,-500.0,0.00011075,2]
[394942969,1764179438423,-500.0,0.00011075,2]
[394942970,1764179438433,-500.0,0.00011075,2]
[394942971,1764179438443,-500.0,0.00011075,2]
[394942972,1764179438453,-500.0,0.00011075,2]
[394942973,1764179438463,-500.0,0.00011075,2]
[394942974,1764179438473,-500.0,0.00011075,2]
[394942975,1764179438483,-500.0,0.00011075,2]
[394942976,1764179438493,-500.0,0.00011075,2]
[394942977,1764179438502,-500.0,0.00011075,2]
[394942979,1764179438512,-500.0,0.00011075,2]
[394942980,1764179438522,-500.0,0.00011075,2]
[394942981,1764179438531,-500.0,0.00011075,2]
[394942982,1764179438541,-374.29835128,0.00011075,2]
[394942983,1764179438551,-500.0,0.00011075,2]
[394942984,1764179438561,-500.0,0.00011075,2]
[394942985,1764179438570,-500.0,0.00011075,2]
[394942986,1764179438580,-500.0,0.00011075,2]
[394942987,1764179438591,-500.0,0.00011075,2]
[394942989,1764179438601,-500.0,0.00011075,2]
[394942990,1764179438613,-500.0,0.00011075,2]
[394942991,1764179438624,-500.0,0.00011075,2]
[394942992,1764179438634,-500.0,0.00011075,2]
[394942993,1764179438646,-500.0,0.00011075,2]
[394942994,1764179438655,-600.0,0.00011075,2]
[394942995,1764179438666,-500.0,0.00011075,2]
[394942996,1764179438676,-500.0,0.00011075,2]
[394942997,1764179438688,-500.0,0.00011075,2]
[394942998,1764179438697,-500.0,0.00011075,2]
[394942999,1764179438709,-300.0,0.00011075,2]
[394943000,1764179438719,-300.0,0.00011075,2]
[394943001,1764179438729,-1200.0,0.00011075,2]
[394943002,1764179438739,-50000.0,0.00011076,2]
[394943003,1764179438750,-195.0,0.00011076,2]
[394943004,1764179438760,-241.0,0.00011076,2]
[394943005,1764179438770,-150.0,0.00011076,2]
[394943006,1764179438783,-500.0,0.00011085,2]
[394943007,1764179438793,-300.0,0.00011303,2]
[394943008,1764179438803,-600.0,0.00011304,2]
[394943009,1764179438813,-300.0,0.00011304,2]
[394943010,1764179438822,-300.0,0.00011304,2]
[394943011,1764179438832,-300.0,0.00011304,2]
[394943012,1764179438842,-300.0,0.00011304,2]
[394943013,1764179438851,-300.0,0.00011304,2]
[394943014,1764179438861,-300.0,0.00011304,2]
[394943015,1764179438871,-300.0,0.00011304,2]
[394943016,1764179438880,-300.0,0.00011304,2]
[394943017,1764179438890,-300.0,0.00011304,2]
[394943018,1764179438900,-300.0,0.00011304,2]
[394943019,1764179438910,-300.0,0.00011304,2]
[394943020,1764179438921,-300.0,0.00011304,2]
[394943021,1764179438931,-300.0,0.00011304,2]
[394943022,1764179438941,-300.0,0.00011304,2]
[394943023,1764179438951,-420.0,0.00012169,2]
[394943024,1764179438961,-500.0,0.00012181,2]
[394943025,1764179438972,-1010.61,0.00012329,2]
[394943026,1764179438981,-842.17,0.00012329,2]
[394943027,1764179438992,-701.81,0.00012329,2]
[394943028,1764179439003,-720.0,0.00012435,2]
[394943029,1764179439013,-196.17491071,0.00012739,2]
[394943030,1764179439024,-177.0,0.00013076,2]
[394943031,1764179439034,-587.0,0.00013371,2]
[394943032,1764179439043,-864.0,0.00013678,2]
[394943033,1764179439054,-500.0,0.00013698,2]
[394943034,1764179439063,-500.0,0.00013698,2]
[394943035,1764179439072,-500.0,0.00013698,2]
[394943036,1764179439082,-500.0,0.00013698,2]
[394943037,1764179439092,-417.13183414,0.00013698,2]
[394943038,1764179439102,-1030.76,0.00013698,2]
[394943039,1764179439112,-1030.76,0.00013698,2]
[394943040,1764179439122,-1030.76,0.00013698,2]
[394943041,1764179439132,-1030.76,0.00013698,2]
[394943042,1764179439142,-1030.76,0.00013698,2]
[394943043,1764179439152,-1030.76,0.00013698,2]
[394943044,1764179439162,-1030.76,0.00013698,2]
[394943045,1764179439171,-1030.76,0.00013698,2]
[394943046,1764179439180,-1030.76,0.00013698,2]
[394943047,1764179439190,-1030.76,0.00013698,2]
[394943048,1764179439199,-1343.13780067,0.00014053,2]
[394943049,1764179439210,-152.0,0.00014692,2]
[394943050,1764179439220,-946.0,0.00015,2]
[394943051,1764179439229,-1000.0,0.00015046,2]
[394943052,1764179439239,-204.0,0.00015076,2]
[394943053,1764179439251,-160.0,0.00015214,2]
[394943054,1764179439260,-353.4974844,0.00015214,2]